Cogmind - Beta 10.2 @@@ ROGUE MODE // 2020.11.02 @ 14:35:19 // Halloween2020/ForbiddenLore Player: EC-422UE Result: Destroyed by G-47 Trooper with Particle Gun Performance ------------- Evolutions (2) 1000 Regions Visited (4) 800 Robots Destroyed (42) 210 Value Destroyed (1278) 1278 Prototype IDs (5) 100 Alien Tech Used (0) 0 Bonus (22) 22 TOTAL SCORE: 3410 Bonus ------- High Alert Combat Kills 22 Cogmind --------- Core Integrity 0/550 Matter 299/300 Energy 99/100 System Corruption 2% Temperature Cool (9) Movement Core (100) Ox1 Location -8/Storage Parts ------- > --- POWER (2) -------- (None) > --- PROPULSION (3) --- (None) > --- UTILITY (4) ------ Small Storage Unit Improved Signal Interpreter > --- WEAPON (2) ------- (None) > --- INVENTORY (6) ---- Deuterium Engine Peak State ------------ > --- POWER ------------ Deuterium Engine Light Deuterium Engine > --- PROPULSION ------- Aluminum Leg Improved VTOL Module Improved VTOL Module > --- UTILITY ---------- Small Storage Unit Improved Signal Interpreter Improved Weapon Shielding Light Armor Plating > --- WEAPON ----------- Advanced Beam Rifle Scythe > --- INVENTORY -------- Deuterium Engine Deuterium Engine Improved VTOL Module Drone Bay Beam Rifle Advanced EMP Blaster [Rating: 31] Favorites ----------- Power Deuterium Engine Engine Deuterium Engine Propulsion Aluminum Leg Leg Aluminum Leg Flight Unit Improved VTOL Module Utility Small Storage Unit Device Sensor Array Storage Small Storage Unit Processor Improved Signal Interpreter Protection Medium Armor Plating Weapon Small Laser Energy Gun Small Laser Ballistic Gun Assault Rifle Launcher Advanced EMP Blaster Slashing Weapon Scythe Build | -11 -10 -9 -8 -8 ------- Run | Scr Mat Mat Mat Sto Slots Evolved 4 | . . 2 2 . Power 1 | . . . 1 . Propulsion 1 | . . . 1 . Utility 2 | . . 2 . . Weapon . | . . . . . Parts Attached 48 | 5 4 9 16 14 Power 7 | 1 1 1 3 1 Engine 7 | 1 1 1 3 1 Core . | . . . . . Reactor . | . . . . . Propulsion 13 | 2 1 1 5 4 Treads . | . . . . . Leg 9 | 2 1 1 2 3 Wheel . | . . . . . Hover . | . . . . . Flight 4 | . . . 3 1 Utility 11 | 1 1 4 3 2 Device 3 | . . 2 . 1 Storage 2 | 1 . . . 1 Processor 1 | . . 1 . . Hackware . | . . . . . Protection 5 | . 1 1 3 . Artifact . | . . . . . Weapon 17 | 1 1 3 5 7 Energy Gun 12 | 1 . 3 4 4 Energy Cannon . | . . . . . Ballistic Gun 1 | . 1 . . . Ballistic Cannon . | . . . . . Launcher 2 | . . . 1 1 Special Weapon . | . . . . . Impact Weapon . | . . . . . Slashing Weapon 2 | . . . . 2 Piercing Weapon . | . . . . . Special Melee Weapon . | . . . . . Unidentified Prototypes 3 | . . . 3 . Parts Lost 31 | . 1 11 2 17 Power 5 | . . 2 . 3 Propulsion 8 | . . 2 . 6 Utility 9 | . . 3 2 4 Weapon 9 | . 1 4 . 4 Highest Loss Streak 6 | . 1 5 2 6 Average Slot Usage (%) 86 | . 97 91 78 78 Engine 13 | . 14 10 15 17 Leg 16 | . 28 20 9 11 Flight 5 | . . . 8 12 Device 5 | . . 11 3 1 Storage 10 | . 14 11 9 7 Processor 8 | . . 11 9 9 Protection 9 | . 13 8 9 6 Energy Gun 10 | . 12 9 14 9 Ballistic Gun 5 | . 14 9 . . Naked Turns . | . . . . . Heaviest Build 28 | 10 19 22 28 28 Greatest Support 25 | 20 20 20 10 25 Greatest Overweight (x) 4 | . . 4 2 4 Average Overweight (x) . | . . . 1 1 Largest Inventory Capacity 6 | 6 6 6 6 6 Average Capacity 5 | 5 6 6 6 5 Most Carried 6 | 4 6 6 6 6 Average Carried 4 | 2 5 4 3 3 Final Capacity 6 | 6 6 6 6 6 Final Carried 6 | 4 6 2 6 1 Class Distribution -------------------- 86% | Mutant 13% | Scavenger-Mutant Dominant Class ---------------- Mutant | -10/Materials Mutant | -9/Materials Mutant | -8/Materials Scavenger-Mutant | -8/Storage Resources | -11 -10 -9 -8 -8 ----------- Run | Scr Mat Mat Mat Sto Matter Collected 926 | 233 130 92 149 322 Remotely . | . . . . . Salvage Created 1743 | . 282 190 241 1030 Parts 81 | . 12 18 15 36 Haulers Intercepted 1 | . . . 1 . Recyclers Shooed 1 | . . . . 1 Parts Field Recycled . | . . . . . Retrieved Matter . | . . . . . Parts Self-Destructed . | . . . . . Prevented . | . . . . . Kills | -11 -10 -9 -8 -8 ------- Run | Scr Mat Mat Mat Sto Combat Hostiles Destroyed 28 | . 5 7 3 13 Melee 1 | . . . . 1 Guns 16 | . 5 5 3 3 AOE 8 | . . 2 . 6 Classes Destroyed 9 | . 3 4 1 1 Worker 3 | . . 1 . 2 Builder 2 | . . . . 2 Hauler 1 | . . . 1 . Recycler 4 | . 1 . . 3 Operator 1 | . . 1 . . Watcher 3 | . 1 . 1 1 Swarmer 3 | . . 3 . . Grunt 17 | . 5 2 . 10 Sentry 8 | . . 2 3 3 Best Kill Streak 15 | . 4 4 2 15 Combat Bots Only 9 | . 2 3 1 9 Max Kills in Single Turn 2 | . 2 2 1 2 Gunslinging 1 | . 1 . . . Exploded 2 | . . 2 . 2 Melee 1 | . . . . 1 Uniques/NPCs Destroyed . | . . . . . Combat | -11 -10 -9 -8 -8 -------- Run | Scr Mat Mat Mat Sto Damage Taken 3134 | . 346 878 326 1584 Core 687 | . 52 76 91 468 Absorbed by Shields . | . . . . . Core Remaining (%) 86 | 100 79 81 . . Volleys Fired 124 | . 26 32 15 51 Largest 2 | . 2 2 2 2 Hottest 117 | . 60 85 101 117 Shots Fired 190 | . 51 42 30 67 Gun 165 | . 51 42 29 43 Cannon . | . . . . . Launcher 25 | . . . 1 24 Special . | . . . . . Kinetic 40 | . 26 14 . . Thermal 125 | . 25 28 29 43 Explosive . | . . . . . Electromagnetic 25 | . . . 1 24 Robot Hit Streak 19 | . 7 19 5 12 Robot Miss Streak 3 | . 2 3 3 3 Penetration Max . | . . . . . Secondary Targets 1 | . 1 . . . Max Gunslinging Chain 1 | . 1 . . . Shots Hit Robots 137 | . 35 37 20 45 Core Hits 81 | . 14 33 9 25 Critical Hits . | . . . . . Critical Kills . | . . . . . Critical Parts Destroyed . | . . . . . Melee Attacks 2 | . . . . 2 Impact . | . . . . . Slashing 2 | . . . . 2 Piercing . | . . . . . Sneak Attacks . | . . . . . Combat Hostiles . | . . . . . Follow-up Attacks . | . . . . . Damage Inflicted 3279 | . 406 587 295 1991 Guns 1552 | . 406 402 230 514 Cannons . | . . . . . Explosions 1693 | . . 183 65 1445 Melee 30 | . . . . 30 Ramming 4 | . . 2 . 2 Kinetic 253 | . 179 74 . . Thermal 1308 | . 227 328 230 523 Explosive 336 | . . 183 . 153 Electromagnetic 1348 | . . . 65 1283 Impact . | . . . . . Slashing 30 | . . . . 30 Piercing . | . . . . . Highest Corruption 2 | . . . . 2 Average Corruption 1 | . . . . 1 Corruption Purged . | . . . . . Effects 3 | . . . . 3 Message Errors 2 | . . . . 2 Weapon Failures 1 | . . . . 1 Overload Shots . | . . . . . Overflow Damage 112 | . . . . 112 Projectiles . | . . . . . Explosions 112 | . . . . 112 Melee . | . . . . . Knockbacks . | . . . . . Impact . | . . . . . Kinetic . | . . . . . Secondary . | . . . . . Self-Inflicted Damage 200 | . . 96 25 79 Shots 5 | . . 1 1 3 Rammed 3 | . . 2 . 1 Targets Rammed 4 | . . 2 . 2 Kicked 1 | . . . . 1 Crushed . | . . . . . Highest Temperature 712 | . 192 66 102 712 Average Temperature 156 | . 74 21 36 289 Received Heat Transfer 1119 | . 195 204 81 639 Effects 36 | . . . . 36 Shutdowns 10 | . . . . 10 Energy Bleed 4 | . . . . 4 Interference 3 | . . . . 3 Matter Decay 5 | . . . . 5 Short Circuit 3 | . . . . 3 Damage (minor) 3 | . . . . 3 Damage (major) 6 | . . . . 6 Damage (core) 2 | . . . . 2 Siege Activations . | . . . . . Robots Corrupted 5 | . . . . 5 Combat Hostiles 3 | . . . . 3 Parts Fried 8 | . . . . 8 Impact Corruptions . | . . . . . Robots Melted . | . . . . . Combat Hostiles . | . . . . . Parts Melted 4 | . 2 1 . 1 Heat Transferred 2540 | . 500 405 499 1136 Parts Sabotaged . | . . . . . Parts Stolen . | . . . . . Parts Stripped . | . . . . . Power Chain Reactions 2 | . . . . 2 Missiles Intercepted . | . . . . . Alert | -11 -10 -9 -8 -8 ------- Run | Scr Mat Mat Mat Sto Peak Influence 443 | . 162 255 206 443 Initial 92 | . . 68 92 86 Average 132 | . 91 103 146 207 Maximum Alert Level 2 | . . 1 1 2 Low Security (%) 80 | 100 100 87 90 48 Level 1 16 | . . 12 9 39 Level 2 2 | . . . . 11 Level 3 . | . . . . . Level 4 . | . . . . . Level 5 . | . . . . . High Security . | . . . . . Max Security . | . . . . . Squads Dispatched 9 | . 1 3 . 5 Investigation 1 | . 1 . . . Extermination . | . . . . . Reinforcement 7 | . . 3 . 4 Assault . | . . . . . Garrison 1 | . . . . 1 Intercept . | . . . . . Construction Impeded 1 | . . . . 1 Haulers Reinforced . | . . . . . Stealth | -11 -10 -9 -8 -8 --------- Run | Scr Mat Mat Mat Sto Distress Signals 4 | . . 1 . 3 Communications Jammed . | . . . . . Distress Signals . | . . . . . Times Spotted 52 | . 6 18 9 19 Peak Tracking Total 7 | . 2 4 3 7 Tactical Retreats 3 | . . 2 . 1 Traps | -11 -10 -9 -8 -8 ------- Run | Scr Mat Mat Mat Sto Traps Triggered 8 | . 1 1 . 6 Indirectly 4 | . . . . 4 Trap Hack Attempts . | . . . . . Triggered . | . . . . . Disarmed . | . . . . . Reprogrammed . | . . . . . Reused . | . . . . . Traps Extracted . | . . . . . Installed . | . . . . . Triggered . | . . . . . Machines | -11 -10 -9 -8 -8 ---------- Run | Scr Mat Mat Mat Sto Machines Disabled 3 | . . 1 . 2 Max in Single Turn 1 | . . 1 . 1 Machines Sabotaged . | . . . . . Garrisons Compromised . | . . . . . Overloaded Fab Kills . | . . . . . Fab Network Shutdowns . | . . . . . Hacking | -11 -10 -9 -8 -8 --------- Run | Scr Mat Mat Mat Sto Machines Accessed 3 | . . 2 . 1 Terminals 3 | . . 2 . 1 Fabricators . | . . . . . Repair Stations . | . . . . . Recycling Units . | . . . . . Scanalyzers . | . . . . . Garrison Access . | . . . . . Total Hacks 6 | . . 5 . 1 Successful 2 | . . 1 . 1 Failed 4 | . . 4 . . Catastrophic 1 | . . 1 . . Database Lockouts . | . . . . . Manual . | . . . . . Terminals 6 | . . 5 . 1 Fabricators . | . . . . . Repair Stations . | . . . . . Recycling Units . | . . . . . Scanalyzers . | . . . . . Garrison Access . | . . . . . Terminal Hacks 2 | . . 1 . 1 Prototype ID Bank 1 | . . 1 . . Open Door 1 | . . . . 1 Fabricator Hacks . | . . . . . Repair Station Hacks . | . . . . . Recycling Unit Hacks . | . . . . . Scanalyzer . | . . . . . Garrison Access Hacks . | . . . . . Unauthorized Hacks . | . . . . . Terminals . | . . . . . Fabricators . | . . . . . Repair Stations . | . . . . . Recycling Units . | . . . . . Scanalyzers . | . . . . . Garrison Access . | . . . . . Data Cores Recovered . | . . . . . Used . | . . . . . Hacking Detections 2 | . . 2 . . Full Trace Events . | . . . . . Feedback Events . | . . . . . Feedback Blocked . | . . . . . Robot Schematics Acquired . | . . . . . Robots Built . | . . . . . Matter . | . . . . . Time . | . . . . . Total Robot Build Rating . | . . . . . Part Schematics Acquired . | . . . . . Parts Built . | . . . . . Matter . | . . . . . Time . | . . . . . Total Part Build Rating . | . . . . . Parts Repaired . | . . . . . Time . | . . . . . Parts Recycled . | . . . . . Recycled Matter . | . . . . . Retrieved Matter . | . . . . . Retrieved Components . | . . . . . Parts Scanalyzed . | . . . . . Part Schematics Acquired . | . . . . . Parts Damaged . | . . . . . Bothacking | -11 -10 -9 -8 -8 ------------ Run | Scr Mat Mat Mat Sto Used RIF Installer . | . . . . . Robots Hacked . | . . . . . Non-combat . | . . . . . Combat . | . . . . . Robot Hacks Applied . | . . . . . Relay Couplers Released . | . . . . . Robots Rewired . | . . . . . Allies Hacked . | . . . . . Hacks Repelled . | . . . . . Allies | -11 -10 -9 -8 -8 -------- Run | Scr Mat Mat Mat Sto Total Allies . | . . . . . Largest Group . | . . . . . Highest-Rated Group . | . . . . . Highest-Rated Ally . | . . . . . Total Orders . | . . . . . Ally Attacks . | . . . . . Total Damage . | . . . . . Kills . | . . . . . Allies Corrupted . | . . . . . Allies Melted . | . . . . . Intel | -11 -10 -9 -8 -8 ------- Run | Scr Mat Mat Mat Sto Robot Analysis Total . | . . . . . Derelict Logs Recovered . | . . . . . Drone Launches 2 | . . . . 2 Drone Recoveries 1 | . . . . 1 Exploration | -11 -10 -9 -8 -8 ------------- Run | Scr Mat Mat Mat Sto Turns Passed 1824 | 67 245 670 399 443 Spaces Moved 739 | 48 106 235 178 172 Core 32 | 6 . 19 . 7 Treads . | . . . . . Legs 705 | 42 106 216 178 163 Wheels . | . . . . . Hover . | . . . . . Flight 2 | . . . . 2 Fastest Speed 50 | 50 120 100 120 100 Average Speed 147 | 111 120 144 163 159 Slowest Speed 250 | 120 120 250 180 250 Overloaded Moves . | . . . . . Propulsion Burnouts . | . . . . . Robots Hopped . | . . . . . Cave-ins Triggered . | . . . . . Exploration Rate (%) 16 | 5 25 20 16 14 Regions Visited 4 Branch Regions 1 Pre-discovered Areas . | . . . . . Known Exits Taken 2 | . . 1 1 . Unknown Exits Taken 2 | 1 1 . . . Scrap Searched . | . . . . . Spaces Dug 1 | . . . . 1 Terrain Destroyed 78 | . . 44 . 34 Melee 1 | . . . . 1 Projectile . | . . . . . AOE 77 | . . 44 . 33 Terrain Rammed . | . . . . . Walls Destroyed . | . . . . . Machines Disabled . | . . . . . Actions | -11 -10 -9 -8 -8 --------- Run | Scr Mat Mat Mat Sto Total 1279 | 61 174 519 255 270 Wait 307 | . 27 237 25 18 Move 735 | 47 105 234 177 172 Hop . | . . . . . Pick Up 47 | 9 8 5 18 7 Fast Attach . | . . . . . Attach 37 | 5 2 9 10 11 Detach . | . . . . . Swap 11 | . 2 . 6 3 Drop 12 | . 4 . 4 4 Fire 124 | . 26 32 15 51 Melee 2 | . . . . 2 Ram 1 | . . 1 . . Kick 3 | . . 1 . 2 Crush . | . . . . . Escape Stasis . | . . . . . Rewire . | . . . . . Trap . | . . . . . Miscellaneous . | . . . . . Route ------- -11/Scrapyard -10/Materials -9/Materials -8/Materials -8/Storage History --------- Turn | Location | Event 21 | -11/Scrapyard | Discovered new exit (range 16) 68 | -11/Scrapyard | Entered Materials 309 | -10/Materials | Discovered new exit (range 5) 313 | -10/Materials | Entered another Materials area 313 | -9/Materials | Evolved 2 slots: Utility x2 347 | -9/Materials | Build established: Mutant 935 | -9/Materials | Lost 4 parts (1p1n1u1w) 973 | -9/Materials | Discovered new exit (range 11) 982 | -9/Materials | Identified exit to Materials 983 | -9/Materials | Entered another Materials area 983 | -8/Materials | Evolved 2 slots: Power x1, Propulsion x1 990 | -8/Materials | Discovered new exit (range 16) 1000 | -8/Materials | Lost 5 parts (1p1n1u2w) 1236 | -8/Materials | Identified exit to Storage 1382 | -8/Materials | Entered Storage 1555 | -8/Storage | Core integrity fell below 50% 1606 | -8/Storage | Lost 6 parts (2n2u2w) 1680 | -8/Storage | Garrison activated, responded to threat 1723 | -8/Storage | Lost 3 parts (1p1n1w) 1755 | -8/Storage | Destroyed 9 combat bots 1815 | -8/Storage | Core integrity fell below 20% 1825 | -8/Storage | Destroyed by G-47 Trooper with Particle Gun Last Messages --------------- 01768_ U-05 Engineer lays Concrete. 01769_ Drone destroyed. 01770_ Acquired Sml. Storage Unit. 01771_ U-05 Engineer lays Concrete. 01773_ Drone retrieved by Drone Bay. 01799_ Lgt. Deuterium Engine destroyed. 01800_ Slammed into G-47 Trooper. 01801_ Kicked G-47 Trooper out of the way. 01802_ Aluminum Leg destroyed. 01804_ U-05 Engineer lays Concrete. 01804_ Acquired 21 matter. 01805_ U-05 Engineer lays Concrete. 01805_ Drone Bay destroyed. 01807_ U-05 Engineer lays Concrete. 01807_ Imp. VTOL Module destroyed. 01808_ U-05 Engineer lays Concrete. 01812_ Aluminum Leg destroyed. 01812_ U-05 Engineer lays Concrete. 01820_ Deuterium Engine destroyed. 01821_ U-05 Engineer lays Concrete. Map ----- +----------------------------------------------------+ | ??????????????# """ # + ##????? | | ??????????????# """ # # T#????? | | ??????????????# + ### ##????? | | ??????????????# """ # ##! #????? | | ??????????????# """ # ##! !#????? | | ??????????????# """ # ##! !####?# | | ??????????????# # ##! ! # ### | | ??????????????########## ####### # | | ???????????????????????# # # | | ???????????????????????# # # | | ???????????????????????# # # | | ???????????????????????# # # | | ???????????????????????# " | | ???????????????????????# # | | ???????????????????????#g= # # | | ???????????????????????# g# # | | ???????????????????????# Y # "Y"#### | | ???????????????????????# ####"""#??? | | ???????????????????????# %#??#####??? | | ???????????????????????# #?????????? | | ???????????????????????# u #?????????? | | ???????????????????????# #?????????? | | ???????????????????????# #?????????? | | ???????????????????????# ##????????? | | ??????????????????????## #????????? | | ??????????????????????## @ #????????? | | ??????????????????????##% #????????? | | ??????????????????????#% #????????? | | ???????????????????? %=! % #????????? | | ????????????????? = = #????????? | | ??????????????? = ????????? | | ??????????????###+##### #T???????? | | ??????????????????????## %####??????? | | ???????????????????????#!%!#?????????? | | ???????????????????????# =[#?????????? | | ???????????????????????#a #?????????? | | ???????????????????????#k #?????????? | | ???????????????????????# #?????????? | | ???????????????????????# ^^#?????????? | | ???????????????????????# ??????????? | | ???????????????????????# ??????????? | | ???????????????????????? ??????????? | | ?????????????????????????????????????? | | ?????????????????????????????????????? | | ?????????????????????????????????????? | | ?????????????????????????????????????? | | ?????????????????????????????????????? | | ?????????????????????????????????????? | | ?????????????????????????????????????? | | ?????????????????????????????????????? | +----------------------------------------------------+ Best States ------------- Heat Dissipation 45 Energy Generation 23 Energy Capacity 450 Matter Stores 300 Matter Capacity 300 Sight Range 16 Robot Scan Range 10 Terrain Scan Density 10 Armor Coverage 225 Weapon Shielding 66 Evasion (%) 40 Item Schematics ----------------- None Robot Schematics ------------------ None Fabricated ------------ Nothing Alien Tech Used ----------------- None Achievements -------------- None Challenges ------------ None Game ------ Seed VisualPropulsionThrusters Manual? 0 Play Time 00:22:17 Cumulative 28.7 hours Start 2020.10.30 @ 17:58:33 End 2020.11.02 @ 14:35:19 Sessions 2 Manual Loads 0 Difficulty Rogue Special Mode Halloween2020/ForbiddenLore Game No. 48 Rogue 48 Adventurer 0 Explorer 0 Win Type - Total 0 Types 0/0/0/0/0/0/0/0/0 Lore% 24 Gallery% 41 Achievement% 25 Wizard Run 0 Options --------- ASCII 0 Keyboard 0 Movement Mouse Keybinds 0 Fullscreen 2 Font 18/SmallcapsGlow Map View 76x50 Tactical HUD 1 Map Filters NONE Filters NONE Steam 1 RUN: 31081c5b-a537-49c9-852f-4c2e8a7a4d4c